bitfinex-derivatives/quotes_BTCF0:USTF0_20250614
["timestamp","ask_amount","ask_price","bid_price","bid_amount"]
[1749926482712,1.18354344,104490.0,104480.0,0.33133016]
[1749926483007,1.18354344,104490.0,104480.0,0.28968865]
[1749926483705,0.47786734,104490.0,104480.0,0.28968865]
[1749926483905,0.09457147,104490.0,104480.0,1.09556624]
[1749926484109,0.09457147,104490.0,104480.0,1.43556624]
[1749926485200,0.09457147,104490.0,104480.0,1.23648624]
[1749926487014,0.09457147,104490.0,104480.0,1.03214214]
[1749926487815,0.11395958,104490.0,104480.0,1.12784614]
[1749926488612,0.11395958,104490.0,104480.0,1.18725793]
[1749926488814,0.09457147,104490.0,104480.0,1.39160203]
[1749926489111,0.09457147,104490.0,104480.0,2.20564203]
[1749926490311,0.09457147,104490.0,104480.0,2.29475972]
[1749926491210,0.09457147,104490.0,104480.0,2.20564203]
[1749926491411,0.09457147,104490.0,104480.0,2.29475972]
[1749926491716,0.09457147,104490.0,104480.0,2.20564203]
[1749926493414,0.09457147,104490.0,104480.0,2.29475972]
[1749926493611,0.07783675,104490.0,104480.0,1.39160203]
[1749926494106,0.002,104490.0,104480.0,1.39160203]
[1749926494613,1e-07,104490.0,104480.0,1.73071972]
[1749926495121,1e-07,104490.0,104480.0,1.73098199]
[1749926495311,1e-07,104490.0,104480.0,1.52663789]
[1749926495517,1e-07,104490.0,104480.0,1.73098199]
[1749926496021,1e-07,104490.0,104480.0,2.55806199]
[1749926496208,1e-07,104490.0,104480.0,2.30806199]
[1749926496719,1e-07,104490.0,104480.0,2.24838793]
[1749926497118,1e-07,104490.0,104480.0,2.26762014]
[1749926498127,1e-07,104490.0,104480.0,2.34459909]
[1749926498521,1e-07,104490.0,104480.0,2.32536688]
[1749926498715,1e-07,104490.0,104480.0,2.38502968]
[1749926499017,1e-07,104490.0,104480.0,2.28935492]
[1749926499320,1e-07,104490.0,104480.0,2.38505892]
[1749926499724,1e-07,104490.0,104480.0,2.18071482]
[1749926500115,1e-07,104490.0,104480.0,2.38505892]
[1749926501527,1e-07,104490.0,104480.0,2.40436366]
[1749926501721,1e-07,104490.0,104480.0,2.38505892]
[1749926504119,1e-07,104490.0,104480.0,2.18071482]
[1749926504420,1e-07,104490.0,104480.0,3.00641313]
[1749926504621,0.0322001,104490.0,104480.0,3.00641313]
[1749926505226,0.7778762,104490.0,104480.0,1.31807418]
[1749926505436,0.8086762,104490.0,104480.0,0.24817138]
[1749926505724,0.8086762,104490.0,104480.0,1.25909138]
[1749926506124,0.8086762,104490.0,104480.0,0.44669138]
[1749926506422,1.01959608,104490.0,104480.0,0.23817138]
[1749926506728,1.01959608,104490.0,104480.0,0.19648865]
[1749926506729,1.31311283,104490.0,104480.0,0.19648865]
[1749926508027,1.22394018,104490.0,104480.0,0.19648865]
[1749926508225,1.31311872,104490.0,104480.0,0.19548865]
[1749926508527,1.31611872,104490.0,104480.0,0.00513835]
[1749926508730,1.31611872,104490.0,104480.0,0.19648865]
[1749926509028,1.32111862,104490.0,104480.0,0.19748865]
[1749926509324,1.32111862,104490.0,104480.0,0.00613835]
[1749926509627,1.32111862,104490.0,104480.0,0.19748865]
[1749926511718,1.32111862,104490.0,104480.0,0.00613835]
[1749926512029,1.37111862,104490.0,104480.0,0.00613835]
[1749926512231,2.18251862,104490.0,104480.0,0.00613835]
[1749926512532,2.19334008,104490.0,104480.0,0.00613835]
[1749926512718,2.43904408,104490.0,104480.0,0.00613835]
[1749926513021,2.43904408,104490.0,104470.0,0.191368]
[1749926513022,0.1913687,104470.0,104460.0,0.35325154]
[1749926513227,0.191387,104460.0,104450.0,0.2870902]
[1749926513425,1.2201311,104460.0,104450.0,0.37669833]
[1749926513731,0.0936,104460.0,104450.0,0.37669833]
[1749926513927,0.0608,104460.0,104450.0,0.94184243]
[1749926514125,0.0608,104460.0,104450.0,0.91019833]
[1749926514528,0.0608,104460.0,104450.0,1.11075833]
[1749926514726,0.0618,104460.0,104450.0,1.11075833]
[1749926515535,0.2661441,104460.0,104450.0,0.93805833]
[1749926516128,0.0628,104460.0,104450.0,0.94005833]
[1749926516332,0.0628,104460.0,104450.0,0.74149833]
[1749926516535,0.0628,104460.0,104450.0,0.38069833]
[1749926516732,0.0628,104460.0,104450.0,0.74149833]
[1749926517831,0.0628,104460.0,104450.0,0.77279833]
[1749926519839,0.0628,104460.0,104450.0,0.731041]
[1749926520037,0.08253689,104460.0,104450.0,0.731041]
[1749926521451,0.08253689,104460.0,104450.0,0.370241]
[1749926521654,0.27392389,104460.0,104450.0,0.370241]
[1749926521946,0.27392389,104460.0,104450.0,0.338941]
[1749926522139,0.83906799,104460.0,104450.0,0.338941]
[1749926522445,0.64768099,104460.0,104450.0,0.338941]
[1749926522747,0.395731,104460.0,104450.0,0.338941]
[1749926524048,0.755731,104460.0,104450.0,0.338941]
[1749926524548,1.116531,104460.0,104450.0,0.338941]
[1749926524851,0.9121869,104460.0,104450.0,0.29522855]
[1749926525047,0.5513869,104460.0,104450.0,0.29522855]
[1749926525348,0.94435773,104470.0,104460.0,0.1913869]
[1749926525539,1.05305203,104470.0,104460.0,0.1913869]
[1749926525744,0.82016988,104470.0,104460.0,0.1913869]
[1749926525940,0.34660128,104470.0,104460.0,0.756531]
[1749926526248,0.03660128,104470.0,104460.0,0.6471869]
[1749926526950,0.04160128,104470.0,104460.0,0.6481869]
[1749926527144,0.80731398,104470.0,104460.0,0.2873869]
[1749926527449,0.80431398,104470.0,104460.0,0.2249869]
[1749926527652,0.86571398,104470.0,104460.0,0.2249869]
[1749926528147,0.86671398,104470.0,104460.0,0.2249869]
[1749926529650,0.66236988,104470.0,104460.0,0.2249869]
[1749926529851,0.86671398,104470.0,104460.0,0.2249869]
[1749926530047,0.66236988,104470.0,104460.0,0.2249869]
[1749926530357,1.22751398,104470.0,104460.0,0.2249869]
[1749926530553,0.86671398,104470.0,104460.0,0.2249869]
[1749926531660,1.03441398,104470.0,104460.0,0.2581869]
[1749926532056,1.19661398,104470.0,104460.0,0.2581869]
[1749926532261,1.00391398,104470.0,104460.0,0.2581869]
[1749926532448,0.79956988,104470.0,104460.0,0.2581869]
[1749926532757,1.00691398,104470.0,104460.0,0.29994249]
[1749926534153,0.61120128,104470.0,104460.0,0.29994249]
[1749926534554,0.80256988,104470.0,104460.0,0.29994249]
[1749926535256,1.00691398,104470.0,104460.0,0.29994249]
[1749926535653,0.80531398,104470.0,104460.0,0.29994249]
[1749926535854,1.00691398,104470.0,104460.0,0.29994249]
[1749926536249,1.09597926,104470.0,104460.0,0.29994249]
[1749926538064,1.09597926,104470.0,104460.0,0.34457875]
[1749926538765,1.45677926,104470.0,104460.0,0.34457875]
[1749926539063,1.45677926,104470.0,104460.0,0.29994249]
[1749926539261,1.25243516,104470.0,104460.0,0.29994249]
[1749926539561,1.45677926,104470.0,104460.0,0.29994249]
[1749926539860,1.25243516,104470.0,104460.0,0.29994249]
[1749926540964,1.19243516,104470.0,104460.0,0.30408084]
[1749926541463,1.25243516,104470.0,104460.0,0.30408084]
[1749926541763,0.88243516,104470.0,104460.0,0.30408084]
[1749926541963,1.08677926,104470.0,104460.0,0.30408084]
[1749926542156,1.42677926,104470.0,104460.0,0.3487171]
[1749926543263,1.22243516,104470.0,104460.0,0.3487171]
[1749926543865,1.22243516,104470.0,104460.0,0.30408084]
[1749926544061,1.42677926,104470.0,104460.0,0.23828084]
[1749926544267,1.48827926,104470.0,104460.0,0.23828084]
[1749926546656,1.51826661,104470.0,104460.0,0.23828084]
[1749926547774,1.39921398,104470.0,104460.0,0.26888084]
[1749926548069,1.51826661,104470.0,104460.0,0.26888084]
[1749926548266,1.33771398,104470.0,104460.0,0.30028084]
[1749926548467,1.42705361,104470.0,104460.0,0.30028084]
[1749926548657,1.22270951,104470.0,104460.0,0.30028084]
[1749926550067,0.86190951,104470.0,104460.0,0.30028084]
[1749926550969,1.06625361,104470.0,104460.0,0.30028084]
[1749926551366,1.42705361,104470.0,104460.0,0.30028084]
[1749926553971,1.45875361,104470.0,104460.0,0.30028084]
[1749926554961,1.25440951,104470.0,104460.0,0.30028084]
[1749926555169,1.45875361,104470.0,104460.0,0.30028084]
[1749926555865,1.22270951,104470.0,104460.0,0.30028084]
[1749926556059,1.42705361,104470.0,104460.0,0.30028084]
[1749926558668,1.33771398,104470.0,104460.0,0.30028084]
[1749926558973,1.33771398,104470.0,104460.0,0.30040225]
[1749926561079,1.45676661,104470.0,104460.0,0.30040225]
[1749926561677,1.33771398,104470.0,104460.0,0.30040225]
[1749926561881,1.36811398,104470.0,104460.0,0.30040225]
[1749926562670,1.36811398,104470.0,104460.0,0.26900225]
[1749926562871,1.51946661,104470.0,104460.0,0.23840225]
[1749926563979,1.31512251,104470.0,104460.0,0.23840225]
[1749926564176,1.51946661,104470.0,104460.0,0.23840225]
[1749926564576,1.40541398,104470.0,104460.0,0.23940225]
[1749926565078,1.52446661,104470.0,104460.0,0.23940225]
[1749926565476,1.52446661,104470.0,104460.0,0.27070225]
[1749926566080,1.32286661,104470.0,104460.0,0.27070225]
[1749926566281,2.33942661,104470.0,104460.0,0.27070225]
[1749926566471,1.09919801,104470.0,104460.0,0.27070225]
[1749926566676,0.47394455,104470.0,104460.0,0.47504635]
[1749926566878,0.454625,104470.0,104460.0,0.30300225]
[1749926567074,0.484625,104470.0,104460.0,0.66380225]
[1749926567278,0.51916318,104470.0,104460.0,0.70866494]
[1749926567583,0.484625,104470.0,104460.0,0.70866494]
[1749926567885,0.6659937,104470.0,104460.0,0.30300225]
[1749926568077,0.6359937,104470.0,104460.0,0.30300225]
[1749926568386,0.3059937,104470.0,104460.0,0.30300225]
[1749926568684,0.3059937,104470.0,104460.0,0.34786494]
[1749926569586,0.3159937,104470.0,104460.0,0.34786494]
[1749926569778,0.22665043,104470.0,104460.0,0.70866494]
[1749926570186,0.22665043,104470.0,104460.0,0.34786494]
[1749926570382,0.3159937,104470.0,104460.0,0.34786494]
[1749926570683,0.6459937,104470.0,104460.0,0.34786494]
[1749926571385,0.55665043,104470.0,104460.0,0.70866494]
[1749926572380,0.03528173,104470.0,104460.0,0.70866494]
[1749926572584,0.6559938,104470.0,104460.0,0.34786494]
[1749926572975,0.3159938,104470.0,104460.0,0.34786494]
[1749926573175,0.124625,104470.0,104460.0,0.54826494]
[1749926573480,0.124625,104470.0,104460.0,1.14906494]
[1749926573786,0.03528173,104470.0,104460.0,1.14906494]
[1749926574781,0.02528173,104470.0,104460.0,2.63332684]
[1749926575083,0.02528173,104470.0,104460.0,1.29299204]
[1749926575680,0.02528173,104470.0,104460.0,1.54299204]
[1749926575987,0.008,104470.0,104460.0,1.54299204]
[1749926576188,0.00014324,104480.0,104470.0,0.1913688]
[1749926576390,0.00014324,104480.0,104470.0,2.2934998]
[1749926576897,0.09446398,104490.0,104480.0,0.1913505]
[1749926577085,0.19408649,104490.0,104480.0,0.98330336]
[1749926577286,0.19408649,104490.0,104480.0,0.77895926]
[1749926577582,0.19408649,104490.0,104480.0,0.62250336]
[1749926577894,1.30657174,104490.0,104480.0,0.33841558]
[1749926578092,1.30657174,104490.0,104480.0,0.53881558]
[1749926578390,1.37647174,104490.0,104480.0,0.4940275]
[1749926578784,1.36847174,104490.0,104480.0,0.4950275]
[1749926578985,1.37247174,104490.0,104480.0,0.4960275]
[1749926579297,1.43247174,104490.0,104480.0,0.4960275]
[1749926579590,1.43247174,104490.0,104480.0,0.2956275]
[1749926579785,1.42847174,104490.0,104480.0,0.2966275]
[1749926580183,1.22312764,104490.0,104480.0,0.2956275]
[1749926580383,1.42847174,104490.0,104480.0,0.2704275]
[1749926580584,1.55081501,104490.0,104480.0,0.007]
[1749926580785,1.98526847,104490.0,104480.0,0.007]
[1749926580985,1.83092437,104490.0,104480.0,0.007]
[1749926581796,1.82992437,104490.0,104480.0,0.002]
[1749926582092,1.83392437,104490.0,104480.0,0.002]
[1749926582887,2.66120437,104490.0,104480.0,0.002]
[1749926583591,3.06103419,104490.0,104480.0,0.002]
[1749926584495,2.85669009,104490.0,104480.0,0.002]
[1749926585687,2.73785574,104490.0,104480.0,0.00613835]
[1749926588298,2.85669062,104490.0,104480.0,0.00613835]
[1749926588598,0.1913505,104480.0,104470.0,0.00014324]
[1749926588805,0.1913688,104470.0,104460.0,0.22185295]
[1749926589001,1.38661122,104470.0,104460.0,0.03046575]
[1749926589303,1.38661122,104470.0,104460.0,0.22185285]
[1749926589500,1.47573568,104470.0,104460.0,0.22185285]
[1749926589808,1.38661122,104470.0,104460.0,0.22185285]
[1749926590407,1.38761122,104470.0,104460.0,0.22485285]
[1749926591098,1.38761122,104470.0,104460.0,0.26660097]
[1749926591399,1.47673568,104470.0,104460.0,0.22585285]
[1749926593803,1.47673568,104470.0,104460.0,0.03446575]
[1749926594109,1.47673568,104470.0,104460.0,0.004]
[1749926594902,1.47673568,104470.0,104460.0,0.1953871]
[1749926595203,1.47673568,104470.0,104460.0,0.004]
[1749926595405,1.47673568,104470.0,104460.0,0.1953871]
[1749926596604,1.47673568,104470.0,104460.0,0.2280871]
[1749926599911,1.47673568,104470.0,104460.0,0.23222545]
[1749926600413,1.47673568,104470.0,104460.0,0.26282545]
[1749926600599,1.27633568,104470.0,104460.0,0.26282545]
[1749926600796,2.22539568,104470.0,104460.0,0.26282545]
[1749926604414,2.22539568,104470.0,104460.0,0.23222545]
[1749926604617,2.25839568,104470.0,104460.0,0.23222545]
[1749926604806,1.24663568,104470.0,104460.0,0.23222545]
[1749926605008,2.25759568,104470.0,104460.0,0.23222545]
[1749926605311,2.25771568,104470.0,104460.0,0.23222545]
[1749926605620,1.24663568,104470.0,104460.0,0.23222545]
[1749926606711,2.25727568,104470.0,104460.0,0.23222545]
[1749926606909,1.24663568,104470.0,104460.0,0.23222545]
[1749926607312,2.22391568,104470.0,104460.0,0.26232545]
[1749926607814,2.19381568,104470.0,104460.0,0.26232545]
[1749926608015,2.19373568,104470.0,104460.0,0.26232545]
[1749926608715,2.2234461,104470.0,104460.0,0.26232545]
[1749926613715,2.2537461,104470.0,104460.0,0.26232545]
[1749926616319,2.2234461,104470.0,104460.0,0.26232545]
[1749926618717,2.2234461,104470.0,104460.0,0.30416131]
[1749926619313,2.2539461,104470.0,104460.0,0.30416131]
[1749926621324,2.2234461,104470.0,104460.0,0.30416131]
[1749926621629,0.90304242,104470.0,104460.0,0.30416131]
[1749926621822,0.10726811,104470.0,104460.0,0.91409349]
[1749926622030,0.86298111,104470.0,104460.0,0.34894939]
[1749926622535,0.29863701,104470.0,104460.0,0.34894939]
[1749926622731,0.45726811,104470.0,104460.0,0.70974939]
[1749926623334,0.64863701,104470.0,104460.0,0.70974939]
[1749926623730,0.45726811,104470.0,104460.0,0.90654939]
[1749926624035,0.64863701,104470.0,104460.0,0.90654939]
[1749926624738,0.55926722,104470.0,104460.0,0.90654939]
[1749926625237,0.53926732,104470.0,104460.0,0.90654939]
[1749926625538,0.20926732,104470.0,104460.0,0.90654939]
[1749926625738,0.57926732,104470.0,104460.0,0.90654939]
[1749926626340,0.53926732,104470.0,104460.0,0.90654939]
[1749926627240,0.34789832,104470.0,104460.0,0.90654939]
[1749926628141,0.36789832,104470.0,104460.0,0.90654939]
[1749926629736,0.55926732,104470.0,104460.0,0.90654939]
[1749926630640,0.01789832,104470.0,104460.0,0.90654939]
[1749926630939,0.20926732,104470.0,104460.0,0.90654939]
[1749926631143,0.01789832,104470.0,104460.0,0.90654939]
[1749926631634,0.01789832,104470.0,104460.0,0.86176131]
[1749926633338,0.20926732,104470.0,104460.0,0.86176131]
[1749926633538,0.01789832,104470.0,104460.0,0.86176131]
[1749926638943,0.58926732,104470.0,104460.0,0.86176131]
[1749926639148,0.58926732,104470.0,104460.0,0.90654939]
[1749926639747,0.79361142,104470.0,104460.0,0.90654939]
[1749926639949,0.79361142,104470.0,104460.0,0.86176131]
[1749926640449,0.75361142,104470.0,104460.0,0.86176131]
[1749926640648,0.75361142,104470.0,104460.0,0.90654939]
[1749926640848,0.73361142,104470.0,104460.0,0.90654939]
[1749926642050,0.7157131,104470.0,104460.0,0.90654939]
[1749926643256,0.5243441,104470.0,104460.0,0.90654939]
[1749926643450,1.20216139,104480.0,104470.0,0.191369]
[1749926643644,1.68216139,104480.0,104470.0,0.26390486]
[1749926644756,1.68416139,104480.0,104470.0,0.26490486]
[1749926644956,1.68516139,104480.0,104470.0,0.26590486]
[1749926645552,1.27651979,104480.0,104470.0,0.26590486]
[1749926645765,0.27616979,104480.0,104470.0,0.62670486]
[1749926645950,0.24466979,104480.0,104470.0,0.62670486]
[1749926646249,0.22466979,104480.0,104470.0,0.65740486]
[1749926646458,0.19236979,104480.0,104470.0,0.86174896]
[1749926646645,0.20236979,104480.0,104470.0,0.89304896]
[1749926646848,0.19236979,104480.0,104470.0,0.89304896]
[1749926647150,0.103,104480.0,104470.0,0.89304896]
[1749926647551,0.103,104480.0,104470.0,1.01529654]
[1749926648458,0.103,104480.0,104470.0,0.81095244]
[1749926648757,0.103,104480.0,104470.0,1.01529654]
[1749926650257,0.103,104480.0,104470.0,0.81095244]
[1749926650459,0.103,104480.0,104470.0,1.01529654]
[1749926651559,0.103,104480.0,104470.0,0.81095244]
[1749926651859,0.103,104480.0,104470.0,1.01529654]
[1749926654951,0.103,104480.0,104470.0,0.81095244]
[1749926655162,0.104,104480.0,104470.0,0.81395244]
[1749926656752,0.413,104480.0,104470.0,0.81495244]
[1749926657159,0.103,104480.0,104470.0,0.81495244]
[1749926657362,0.483,104480.0,104470.0,1.01929654]
[1749926657864,0.483,104480.0,104470.0,0.81495244]
[1749926658165,0.103,104480.0,104470.0,0.81495244]
[1749926658762,0.19236979,104480.0,104470.0,0.77016436]
[1749926659565,0.19236979,104480.0,104470.0,0.97450846]
[1749926659762,0.19236979,104480.0,104470.0,0.77016436]
[1749926660065,0.103,104480.0,104470.0,0.97450846]
[1749926660666,0.103,104480.0,104470.0,1.17290846]
[1749926660858,0.001,104480.0,104470.0,1.27183489]
[1749926661065,0.1000001,104480.0,104470.0,1.22183489]
[1749926661267,0.08936979,104490.0,104480.0,0.1913507]
[1749926661458,0.5289923,104490.0,104480.0,1.67395066]
[1749926662063,0.5289923,104490.0,104480.0,1.68395066]
[1749926662260,0.5289923,104490.0,104480.0,1.89395066]
[1749926662465,0.5299923,104490.0,104480.0,1.69260656]
[1749926662864,0.5299923,104490.0,104480.0,0.88168656]
[1749926663168,0.5299923,104490.0,104480.0,1.68048656]
[1749926663561,0.5299923,104490.0,104480.0,1.68148656]
[1749926663760,0.441,104490.0,104480.0,1.68148656]
[1749926667071,0.441,104490.0,104480.0,1.88583066]
[1749926668468,0.441,104490.0,104480.0,1.68148656]
[1749926670068,0.441,104490.0,104480.0,1.88583066]
[1749926670561,0.441,104490.0,104480.0,1.68148656]
[1749926670766,0.441,104490.0,104480.0,1.88583066]
[1749926671575,0.441,104490.0,104480.0,1.68148656]
[1749926673176,0.441,104490.0,104480.0,0.67268656]
[1749926673377,0.8366765,104490.0,104480.0,0.59798656]
[1749926673575,0.9305765,104490.0,104480.0,0.59798656]
[1749926675776,1.00598508,104490.0,104480.0,0.59798656]
[1749926675975,1.00598508,104490.0,104480.0,0.60212491]
[1749926677779,0.81465268,104490.0,104480.0,0.60212491]
[1749926678474,1.00598498,104490.0,104480.0,0.60212491]
[1749926678778,1.00598498,104490.0,104480.0,0.84527299]
[1749926679470,0.81465268,104490.0,104480.0,0.84527299]
[1749926679675,1.00598508,104490.0,104480.0,0.48447299]
[1749926680072,1.00598508,104490.0,104480.0,0.43968491]
[1749926680271,1.00598508,104490.0,104480.0,0.24132491]
[1749926680479,1.00598508,104490.0,104480.0,0.43968491]
[1749926680781,1.00598508,104490.0,104480.0,0.48447299]
[1749926680984,1.00598508,104490.0,104480.0,0.28611299]
[1749926681177,0.80164098,104490.0,104480.0,0.24132491]
[1749926681383,1.09529583,104490.0,104480.0,0.24132491]
[1749926682877,0.60571933,104490.0,104480.0,0.64691299]
[1749926683087,0.441,104490.0,104480.0,0.94475709]
[1749926683583,0.441,104490.0,104480.0,0.89996901]
[1749926683784,0.441,104490.0,104480.0,0.94479063]
[1749926684080,0.441,104490.0,104480.0,0.74044653]
[1749926686495,0.441,104490.0,104480.0,0.80019021]
[1749926686688,0.441,104490.0,104480.0,0.74044653]
[1749926687799,0.441,104490.0,104480.0,0.80019021]
[1749926687989,0.441,104490.0,104480.0,0.74044653]
[1749926688390,0.441,104490.0,104480.0,0.94479063]
[1749926688605,0.441,104490.0,104480.0,1.00453431]
[1749926690897,0.441,104490.0,104480.0,0.80019021]
[1749926691198,0.441,104490.0,104480.0,1.00453431]
[1749926698708,0.53031075,104490.0,104480.0,0.94479063]
[1749926701309,0.53031075,104490.0,104480.0,0.97050007]
[1749926702210,0.53031075,104490.0,104480.0,0.74044653]
[1749926702505,0.76036429,104490.0,104480.0,0.71014653]
[1749926702704,1.24455023,104490.0,104480.0,0.24132491]
[1749926703007,1.64344348,104490.0,104480.0,0.24132491]
[1749926703210,1.66657436,104490.0,104480.0,0.19948905]
[1749926703409,2.67053436,104490.0,104480.0,0.19948905]
[1749926704209,2.74749283,104490.0,104480.0,0.19848905]
[1749926704414,2.74649283,104490.0,104480.0,0.19548905]
[1749926704712,2.74749283,104490.0,104480.0,0.19648905]
[1749926705412,1.68537797,104490.0,104480.0,0.19648905]
[1749926705714,2.49237797,104490.0,104480.0,0.19648905]
[1749926708818,2.37354309,104490.0,104480.0,0.19648905]
[1749926711017,2.46272397,104490.0,104480.0,0.19648905]
[1749926711214,2.37354309,104490.0,104480.0,0.19648905]
[1749926711822,2.4627157,104490.0,104480.0,0.19648905]
[1749926714020,1.4583557,104490.0,104480.0,0.19648905]
[1749926714218,1.09032348,104490.0,104480.0,0.19648905]
[1749926714413,1.70523108,104490.0,104480.0,0.19648905]
[1749926714626,1.70523108,104490.0,104480.0,0.58748905]
[1749926714817,0.70163108,104490.0,104480.0,0.58748905]
[1749926715120,1.70547108,104490.0,104480.0,0.58748905]
[1749926715422,1.70547108,104490.0,104480.0,0.61878905]
[1749926715922,1.9100633,104490.0,104480.0,0.61878905]
[1749926716123,1.9090633,104490.0,104480.0,0.61978905]
[1749926716813,1.9090633,104490.0,104480.0,0.61878905]
[1749926717122,1.70447108,104490.0,104480.0,0.62278905]
[1749926719232,1.9090633,104490.0,104480.0,0.62278905]
[1749926720418,2.1003957,104490.0,104480.0,0.62278905]
[1749926720719,2.1003957,104490.0,104480.0,0.59148905]
[1749926723922,1.9090633,104490.0,104480.0,0.59148905]
[1749926724124,2.1003956,104490.0,104480.0,0.62158905]
[1749926726532,2.1003956,104490.0,104480.0,0.66330695]
[1749926727134,2.0686956,104490.0,104480.0,0.66330695]
[1749926728335,1.82837284,104490.0,104480.0,0.66330695]
[1749926728526,2.0458956,104490.0,104480.0,0.66330695]
[1749926728838,2.0458956,104490.0,104480.0,0.62158905]
[1749926729229,2.0458956,104490.0,104480.0,0.66332242]
[1749926729630,1.95672299,104490.0,104480.0,0.66332242]
[1749926730234,0.95288299,104490.0,104480.0,0.66332242]
[1749926730437,1.95160299,104490.0,104480.0,0.66332242]
[1749926731327,0.97841096,104490.0,104480.0,0.66332242]
[1749926731537,1.97681096,104490.0,104480.0,0.66332242]
[1749926732239,1.74669077,104490.0,104480.0,0.66332242]
[1749926732433,1.97681096,104490.0,104480.0,0.66332242]
[1749926733741,2.09564584,104490.0,104480.0,0.66332242]
[1749926734340,1.86552565,104490.0,104480.0,0.66332242]
[1749926734540,1.09724584,104490.0,104480.0,0.66332242]
[1749926734844,2.32556603,104490.0,104480.0,0.66332242]
[1749926735349,2.68636603,104490.0,104480.0,0.27242242]
[1749926735640,2.74886603,104490.0,104480.0,0.24222242]
[1749926735845,2.74886603,104490.0,104480.0,0.20048905]
[1749926737245,2.49319964,104490.0,104480.0,0.24226675]
[1749926738147,2.13239964,104490.0,104480.0,0.24226656]
[1749926738745,2.13239964,104490.0,104480.0,0.27276656]
[1749926738941,1.32955964,104490.0,104480.0,0.27276656]
[1749926739149,2.13215964,104490.0,104480.0,0.26288905]
[1749926739750,2.13215964,104490.0,104480.0,0.30466816]
[1749926742142,1.13822734,104490.0,104480.0,0.66546816]
[1749926742451,1.35931847,104490.0,104480.0,0.87004215]
[1749926743452,1.35931847,104490.0,104480.0,0.66546816]
[1749926746848,1.35931847,104490.0,104480.0,0.86082816]
[1749926747152,1.87405964,104490.0,104480.0,0.49798816]
[1749926747354,1.90525964,104490.0,104480.0,0.49798816]
[1749926747741,1.71392734,104490.0,104480.0,0.49798816]
[1749926748242,1.56389246,104490.0,104480.0,0.85878816]
[1749926748750,1.68272734,104490.0,104480.0,0.81700905]
[1749926748944,0.88036734,104490.0,104480.0,0.81700905]
[1749926749143,1.07169964,104490.0,104480.0,0.81700905]
[1749926749346,1.07169964,104490.0,104480.0,0.45620905]
[1749926750045,0.88036734,104490.0,104480.0,0.45620905]
[1749926750554,0.88036734,104490.0,104480.0,0.26288905]
[1749926751241,0.88036734,104490.0,104480.0,0.45620905]
[1749926751446,1.07169964,104490.0,104480.0,0.26288905]
[1749926751747,1.07169964,104490.0,104480.0,0.20048905]
[1749926751942,1.49439964,104490.0,104480.0,0.20048905]
[1749926752647,1.37556476,104490.0,104480.0,0.00913835]
[1749926752848,1.37556476,104490.0,104480.0,0.20048895]
[1749926754045,1.17099077,104490.0,104480.0,0.20048895]
[1749926754344,1.52482754,104490.0,104480.0,0.00913835]
[1749926754545,1.37556476,104490.0,104480.0,0.00913835]
[1749926754949,1.37556476,104490.0,104480.0,0.20048895]
[1749926755148,1.37556476,104490.0,104480.0,0.00913835]
[1749926755542,1.37556476,104490.0,104480.0,0.20048895]
[1749926755747,1.37556476,104490.0,104480.0,0.00913835]
[1749926758754,1.49458126,104490.0,104480.0,0.00913835]
[1749926759758,1.64028526,104490.0,104480.0,0.00913835]
[1749926759959,1.6402761,104490.0,104480.0,0.00913835]
[1749926760157,1.52126876,104490.0,104480.0,0.00913835]
[1749926761659,1.64026063,104490.0,104480.0,0.00913835]
[1749926762060,1.52126876,104490.0,104480.0,0.00913835]
[1749926762259,1.64025233,104490.0,104480.0,0.00913835]
[1749926762764,1.78329291,104490.0,104480.0,0.00913835]
[1749926762954,1.78329291,104490.0,104460.0,0.4303088]
[1749926762955,0.191369,104470.0,104460.0,0.4303088]
[1749926763154,1.63966931,104470.0,104460.0,0.39222816]
[1749926763355,2.03276931,104470.0,104460.0,0.2231873]
[1749926763555,1.97482299,104470.0,104460.0,0.2231873]
[1749926763756,1.97482299,104470.0,104460.0,0.1913873]
[1749926764257,1.97582299,104470.0,104460.0,0.006]
[1749926764464,0.1914239,104440.0,104430.0,0.41471885]
[1749926764669,1.86357115,104440.0,104430.0,0.24229208]
[1749926764872,1.95887115,104440.0,104430.0,0.20053653]
[1749926765069,0.76904725,104440.0,104430.0,0.20053653]
[1749926765263,1.65891716,104440.0,104430.0,0.23253653]
[1749926765459,0.08917326,104440.0,104430.0,0.26293653]
[1749926765666,0.0893165,104450.0,104440.0,0.1914239]
[1749926765872,1.4380765,104450.0,104440.0,0.81989789]
[1749926766169,0.4693165,104450.0,104440.0,0.6153239]
[1749926766367,1.1380365,104450.0,104440.0,0.6482239]
[1749926766773,0.05014324,104450.0,104440.0,0.85279789]
[1749926766974,0.00014324,104450.0,104440.0,0.89448206]
[1749926767168,0.00014324,104450.0,104440.0,1.08784206]
[1749926767873,0.00014324,104450.0,104440.0,0.88326807]
[1749926768174,0.00314324,104450.0,104440.0,1.08784206]
[1749926768471,0.00314324,104450.0,104440.0,0.88326807]
[1749926768668,0.00314324,104450.0,104440.0,1.08784206]
[1749926768868,0.00314324,104450.0,104440.0,0.89448206]
[1749926769068,0.00314324,104450.0,104440.0,1.08784206]
[1749926769974,0.00114324,104450.0,104440.0,1.09184206]
[1749926770175,0.00314324,104450.0,104440.0,1.09184206]
[1749926770577,0.00314324,104450.0,104440.0,1.47184206]
[1749926771169,4e-08,104450.0,104440.0,2.66780768]
[1749926772278,4e-08,104450.0,104440.0,2.41780768]
[1749926772777,4e-08,104450.0,104440.0,2.47755136]
[1749926774073,4e-08,104450.0,104440.0,2.72755136]
[1749926774370,4e-08,104450.0,104440.0,2.47711136]
[1749926774576,0.00014324,104460.0,104450.0,0.1914056]
[1749926774777,0.00014324,104460.0,104450.0,1.28587566]
[1749926774978,0.00014324,104460.0,104450.0,1.38161166]
[1749926775480,4e-08,104460.0,104450.0,2.22765013]
[1749926775688,4e-08,104460.0,104450.0,2.08381982]
[1749926776379,4e-08,104460.0,104450.0,2.33381982]
[1749926776580,4e-08,104460.0,104450.0,2.29210792]
[1749926777178,4e-08,104460.0,104450.0,2.04210792]
[1749926777777,0.00100004,104460.0,104450.0,2.04510792]
[1749926777982,8e-08,104470.0,104460.0,0.1913872]
[1749926778284,0.45811432,104490.0,104480.0,0.1913506]
[1749926778480,0.99268831,104490.0,104480.0,0.1913506]
[1749926778687,0.99268831,104490.0,104480.0,0.29298895]
[1749926779192,0.79932831,104490.0,104480.0,0.29298895]
[1749926779484,0.99384831,104490.0,104480.0,0.29298895]
[1749926779691,0.99384831,104490.0,104480.0,0.2888506]
[1749926780285,0.99484831,104490.0,104480.0,0.2888506]
[1749926780583,1.18618061,104490.0,104480.0,0.2888506]
[1749926780784,0.80032831,104490.0,104480.0,0.2888506]
[1749926781088,0.99684831,104490.0,104480.0,0.2898506]
[1749926786095,0.99684831,104490.0,104480.0,0.6506506]
[1749926788691,1.02657273,104490.0,104480.0,0.6506506]